[Event "Late-Titled-Tuesday-Blitz-April-02-2024"]
[Site "Chess.com"]
[Date "2024.04.02"]
[Round "11"]
[White "Rodalquilar"]
[Black "Kotlyar_K"]
[Result "1-0"]
[WhiteElo "2752"]
[BlackElo "2609"]
[TimeControl "180+1"]
[EndTime "16:04:39 PDT"]
[Termination "Rodalquilar won by checkmate"]

1. d4 {[%clk 0:03:00.9]} 1... Nf6 {[%clk 0:02:57.9]} 2. Nf3 {[%clk 0:03:00.7]}
2... g6 {[%clk 0:02:57.6]} 3. Bf4 {[%clk 0:03:01.1]} 3... d5 {[%clk 0:02:55.2]}
4. e3 {[%clk 0:03:01.3]} 4... Bg7 {[%clk 0:02:55.5]} 5. Be2 {[%clk 0:03:01.9]}
5... O-O {[%clk 0:02:55.7]} 6. O-O {[%clk 0:03:02.4]} 6... c5 {[%clk 0:02:55.6]}
7. c3 {[%clk 0:03:02.8]} 7... Nc6 {[%clk 0:02:54]} 8. h3 {[%clk 0:03:03.3]} 8...
b6 {[%clk 0:02:31.8]} 9. Qb3 {[%clk 0:03:02.7]} 9... c4 {[%clk 0:02:25]} 10. Qa3
{[%clk 0:03:03.2]} 10... Bf5 {[%clk 0:02:21.7]} 11. b3 {[%clk 0:03:02.7]} 11...
b5 {[%clk 0:02:17.2]} 12. Nbd2 {[%clk 0:03:02.6]} 12... Rc8 {[%clk 0:02:07.5]}
13. Rfe1 {[%clk 0:02:57.7]} 13... Nd7 {[%clk 0:01:56.3]} 14. Bf1 {[%clk
0:02:56.1]} 14... b4 {[%clk 0:01:43.6]} 15. cxb4 {[%clk 0:02:55.5]} 15... c3
{[%clk 0:01:44.1]} 16. Nb1 {[%clk 0:02:52.9]} 16... c2 {[%clk 0:01:40.7]} 17.
Nbd2 {[%clk 0:02:52.5]} 17... e5 {[%clk 0:01:40.9]} 18. Bg5 {[%clk 0:02:27.8]}
18... f6 {[%clk 0:01:26.9]} 19. Bh4 {[%clk 0:02:28.1]} 19... e4 {[%clk
0:01:14.2]} 20. Nh2 {[%clk 0:02:26.3]} 20... Qe7 {[%clk 0:01:10.7]} 21. Ba6
{[%clk 0:01:37.3]} 21... Rb8 {[%clk 0:00:55]} 22. Bg3 {[%clk 0:01:37.5]} 22...
Rb6 {[%clk 0:00:47.2]} 23. Bc7 {[%clk 0:01:34.1]} 23... Qxb4 {[%clk 0:00:44.9]}
24. Qxb4 {[%clk 0:01:32.8]} 24... Nxb4 {[%clk 0:00:33.1]} 25. Bxb6 {[%clk
0:01:32.4]} 25... Nxb6 {[%clk 0:00:32.4]} 26. Be2 {[%clk 0:01:23.4]} 26... Nd3
{[%clk 0:00:32.5]} 27. Bxd3 {[%clk 0:00:50.7]} 27... exd3 {[%clk 0:00:33.4]} 28.
b4 {[%clk 0:00:51.3]} 28... Nc4 {[%clk 0:00:26]} 29. Nhf1 {[%clk 0:00:51.5]}
29... Rb8 {[%clk 0:00:20.9]} 30. a3 {[%clk 0:00:51.9]} 30... Bf8 {[%clk
0:00:14.5]} 31. g4 {[%clk 0:00:47.6]} 31... Bd7 {[%clk 0:00:12.1]} 32. Nb3
{[%clk 0:00:43.7]} 32... a5 {[%clk 0:00:10.2]} 33. Nc1 {[%clk 0:00:38.9]} 33...
d2 {[%clk 0:00:08.4]} 34. Nxd2 {[%clk 0:00:38.7]} 34... Nxd2 {[%clk 0:00:09.3]}
35. Re2 {[%clk 0:00:38.2]} 35... Nc4 {[%clk 0:00:06.8]} 36. Rxc2 {[%clk
0:00:37.9]} 36... axb4 {[%clk 0:00:07.4]} 37. axb4 {[%clk 0:00:38.4]} 37... Bxb4
{[%clk 0:00:06]} 38. Nd3 {[%clk 0:00:38.9]} 38... Bd6 {[%clk 0:00:05.8]} 39. Ra6
{[%clk 0:00:35.9]} 39... Bf8 {[%clk 0:00:05.3]} 40. Rxf6 {[%clk 0:00:35.1]}
40... Ba4 {[%clk 0:00:05.4]} 41. Rc1 {[%clk 0:00:34.6]} 41... Bb3 {[%clk
0:00:05.1]} 42. Nf4 {[%clk 0:00:33.5]} 42... Nb2 {[%clk 0:00:04.2]} 43. Rc7
{[%clk 0:00:30.7]} 43... Bg7 {[%clk 0:00:03.8]} 44. Rff7 {[%clk 0:00:30.8]}
44... Bh6 {[%clk 0:00:03.8]} 45. Ne6 {[%clk 0:00:30.2]} 45... Re8 {[%clk
0:00:03]} 46. Rxh7 {[%clk 0:00:23.2]} 46... Rxe6 {[%clk 0:00:02.3]} 47. Rxh6
{[%clk 0:00:23.7]} 47... Re8 {[%clk 0:00:02.2]} 48. Rxg6+ {[%clk 0:00:24]} 48...
Kh8 {[%clk 0:00:02.9]} 49. Rb6 {[%clk 0:00:24.2]} 49... Bc4 {[%clk 0:00:02.6]}
50. Rxb2 {[%clk 0:00:23.8]} 50... Ra8 {[%clk 0:00:02.9]} 51. Kg2 {[%clk
0:00:22.7]} 51... Kg8 {[%clk 0:00:03.8]} 52. Kg3 {[%clk 0:00:22.9]} 52... Kf8
{[%clk 0:00:04.7]} 53. Rbb7 {[%clk 0:00:22.6]} 53... Ke8 {[%clk 0:00:05.6]} 54.
Rh7 {[%clk 0:00:22.5]} 54... Kd8 {[%clk 0:00:06.5]} 55. Rh8# {[%clk 0:00:23]}
1-0

[Event "Late-Titled-Tuesday-Blitz-April-02-2024"]
[Site "Chess.com"]
[Date "2024.04.02"]
[Round "11"]
[White "sergiochess83"]
[Black "Kazan28"]
[Result "0-1"]
[WhiteElo "2939"]
[BlackElo "2712"]
[TimeControl "180+1"]
[EndTime "16:04:46 PDT"]
[Termination "Kazan28 won by checkmate"]

1. e4 {[%clk 0:03:00.9]} 1... e5 {[%clk 0:02:58.2]} 2. Nf3 {[%clk 0:03:00.6]}
2... Nc6 {[%clk 0:02:58.4]} 3. Bc4 {[%clk 0:02:58.7]} 3... Nf6 {[%clk
0:02:58.3]} 4. d3 {[%clk 0:02:55.6]} 4... Be7 {[%clk 0:02:58.6]} 5. Nc3 {[%clk
0:02:54.9]} 5... d6 {[%clk 0:02:57.7]} 6. a4 {[%clk 0:02:53.4]} 6... O-O {[%clk
0:02:56.8]} 7. O-O {[%clk 0:02:48.6]} 7... Be6 {[%clk 0:02:57.1]} 8. Bxe6 {[%clk
0:02:25.1]} 8... fxe6 {[%clk 0:02:58]} 9. Ne2 {[%clk 0:02:18.8]} 9... d5 {[%clk
0:02:45.4]} 10. Ng3 {[%clk 0:02:18.4]} 10... Bd6 {[%clk 0:02:42.2]} 11. c3
{[%clk 0:02:18]} 11... Qd7 {[%clk 0:02:41.4]} 12. b4 {[%clk 0:02:17.5]} 12... a6
{[%clk 0:02:35.8]} 13. Bb2 {[%clk 0:02:17.3]} 13... Ne7 {[%clk 0:02:34]} 14. Qb3
{[%clk 0:02:13.3]} 14... c6 {[%clk 0:02:29.3]} 15. c4 {[%clk 0:02:11.3]} 15...
Ng6 {[%clk 0:02:22.9]} 16. cxd5 {[%clk 0:01:30.5]} 16... exd5 {[%clk 0:02:14.9]}
17. Rfe1 {[%clk 0:01:28.8]} 17... Kh8 {[%clk 0:02:11.9]} 18. Nf5 {[%clk
0:01:12.2]} 18... d4 {[%clk 0:01:49.5]} 19. g3 {[%clk 0:01:03.7]} 19... Ne7
{[%clk 0:01:46.6]} 20. Nxd6 {[%clk 0:00:55.1]} 20... Qxd6 {[%clk 0:01:47.5]} 21.
Nxd4 {[%clk 0:00:55.1]} 21... exd4 {[%clk 0:01:43.6]} 22. e5 {[%clk 0:00:55.6]}
22... Qd5 {[%clk 0:01:44.2]} 23. Qc4 {[%clk 0:00:38.9]} 23... Ng4 {[%clk
0:01:40.9]} 24. Bxd4 {[%clk 0:00:35]} 24... Ng6 {[%clk 0:01:19.6]} 25. Qxd5
{[%clk 0:00:32.5]} 25... cxd5 {[%clk 0:01:19.7]} 26. f4 {[%clk 0:00:33.1]} 26...
Nh6 {[%clk 0:01:13.7]} 27. Bc5 {[%clk 0:00:26.4]} 27... Rfc8 {[%clk 0:01:12.6]}
28. a5 {[%clk 0:00:15.2]} 28... Nf5 {[%clk 0:01:12.7]} 29. g4 {[%clk 0:00:11.6]}
29... Nfh4 {[%clk 0:01:11.8]} 30. f5 {[%clk 0:00:11]} 30... Nf3+ {[%clk
0:01:10.6]} 31. Kf2 {[%clk 0:00:10.8]} 31... Nxe1 {[%clk 0:01:11.5]} 32. Rxe1
{[%clk 0:00:10.1]} 32... Nf4 {[%clk 0:00:55.3]} 33. Re3 {[%clk 0:00:01.8]} 33...
d4 {[%clk 0:00:55.5]} 34. Rf3 {[%clk 0:00:02.1]} 34... Nd5 {[%clk 0:00:53.1]}
35. e6 {[%clk 0:00:02.6]} 35... Kg8 {[%clk 0:00:19.5]} 36. Kg3 {[%clk
0:00:02.8]} 36... Rxc5 {[%clk 0:00:18.7]} 37. bxc5 {[%clk 0:00:02.7]} 37... Kf8
{[%clk 0:00:19.6]} 38. g5 {[%clk 0:00:02.7]} 38... Ke7 {[%clk 0:00:19.7]} 39.
Kg4 {[%clk 0:00:03.2]} 39... Rc8 {[%clk 0:00:20]} 40. Rh3 {[%clk 0:00:03.2]}
40... Ne3+ {[%clk 0:00:17.8]} 41. Kf4 {[%clk 0:00:02.9]} 41... Rxc5 {[%clk
0:00:18.2]} 42. Rxh7 {[%clk 0:00:03.1]} 42... Rxf5+ {[%clk 0:00:18.8]} 43. Ke4
{[%clk 0:00:03.5]} 43... Kxe6 {[%clk 0:00:18.9]} 44. Rxg7 {[%clk 0:00:03.7]}
44... Re5+ {[%clk 0:00:18.7]} 45. Kf4 {[%clk 0:00:03]} 45... Nd5+ {[%clk
0:00:19.1]} 46. Kg4 {[%clk 0:00:02.3]} 46... Re3 {[%clk 0:00:17.2]} 47. Rxb7
{[%clk 0:00:02.3]} 47... Rxd3 {[%clk 0:00:17.6]} 48. g6 {[%clk 0:00:03.2]} 48...
Rd1 {[%clk 0:00:17.5]} 49. g7 {[%clk 0:00:03.7]} 49... Rg1+ {[%clk 0:00:17.8]}
50. Kf3 {[%clk 0:00:04.1]} 50... d3 {[%clk 0:00:17.7]} 51. Kf2 {[%clk
0:00:03.7]} 51... Rg5 {[%clk 0:00:15.7]} 52. Ke1 {[%clk 0:00:03]} 52... Ke5
{[%clk 0:00:15.6]} 53. Kd2 {[%clk 0:00:03.3]} 53... Kd4 {[%clk 0:00:16]} 54. Rd7
{[%clk 0:00:03.6]} 54... Rg2+ {[%clk 0:00:16.3]} 55. Kd1 {[%clk 0:00:03.3]}
55... d2 {[%clk 0:00:16.1]} 56. h4 {[%clk 0:00:02.5]} 56... Ke4 {[%clk
0:00:15.8]} 57. h5 {[%clk 0:00:01.8]} 57... Ne3# {[%clk 0:00:16.1]} 0-1

[Event "Late-Titled-Tuesday-Blitz-April-02-2024"]
[Site "Chess.com"]
[Date "2024.04.02"]
[Round "11"]
[White "jcibarra"]
[Black "KaydenTroffChess"]
[Result "0-1"]
[WhiteElo "2962"]
[BlackElo "2871"]
[TimeControl "180+1"]
[EndTime "16:04:48 PDT"]
[Termination "KaydenTroffChess won by checkmate"]

1. e4 {[%clk 0:03:00.9]} 1... c5 {[%clk 0:02:59.8]} 2. Nf3 {[%clk 0:03:01.1]}
2... g6 {[%clk 0:03:00.4]} 3. c3 {[%clk 0:03:00.6]} 3... Bg7 {[%clk 0:03:00.5]}
4. d4 {[%clk 0:03:01.2]} 4... cxd4 {[%clk 0:03:01.4]} 5. cxd4 {[%clk 0:03:01.5]}
5... d5 {[%clk 0:03:01.7]} 6. e5 {[%clk 0:03:00.1]} 6... Nc6 {[%clk 0:03:00]} 7.
Bb5 {[%clk 0:02:59.3]} 7... Nh6 {[%clk 0:02:59.8]} 8. Bxc6+ {[%clk 0:02:48.5]}
8... bxc6 {[%clk 0:03:00]} 9. O-O {[%clk 0:02:49.4]} 9... Bg4 {[%clk 0:02:57.9]}
10. Nbd2 {[%clk 0:02:49]} 10... O-O {[%clk 0:02:57.1]} 11. h3 {[%clk 0:02:49.4]}
11... Bxf3 {[%clk 0:02:56.6]} 12. Nxf3 {[%clk 0:02:49.6]} 12... f6 {[%clk
0:02:56]} 13. Re1 {[%clk 0:02:40.6]} 13... Nf7 {[%clk 0:02:53.2]} 14. e6 {[%clk
0:02:35.4]} 14... Nd6 {[%clk 0:02:50.5]} 15. b3 {[%clk 0:02:35.8]} 15... Ne4
{[%clk 0:02:44.3]} 16. Ba3 {[%clk 0:02:34.8]} 16... Re8 {[%clk 0:02:31.9]} 17.
Qc2 {[%clk 0:02:30.7]} 17... Qa5 {[%clk 0:02:19.9]} 18. Bb2 {[%clk 0:02:22.9]}
18... Rac8 {[%clk 0:02:10.8]} 19. a3 {[%clk 0:02:16.6]} 19... f5 {[%clk
0:02:06.4]} 20. b4 {[%clk 0:02:11.3]} 20... Qc7 {[%clk 0:02:06.1]} 21. Rac1
{[%clk 0:02:01.5]} 21... Qd6 {[%clk 0:02:04.6]} 22. Nh2 {[%clk 0:02:00.6]} 22...
Bh6 {[%clk 0:02:00.7]} 23. Rcd1 {[%clk 0:02:00.2]} 23... a5 {[%clk 0:01:33.5]}
24. bxa5 {[%clk 0:01:48.5]} 24... Ra8 {[%clk 0:01:33.1]} 25. Nf3 {[%clk
0:01:43.8]} 25... Rxa5 {[%clk 0:01:21.6]} 26. Ne5 {[%clk 0:01:44]} 26... Rc8
{[%clk 0:01:16.5]} 27. Nd3 {[%clk 0:01:33.5]} 27... Bg5 {[%clk 0:01:07.7]} 28.
f3 {[%clk 0:01:32.6]} 28... Nf6 {[%clk 0:00:52.5]} 29. Nc5 {[%clk 0:01:30.4]}
29... Bh4 {[%clk 0:00:51.1]} 30. Re2 {[%clk 0:01:28.1]} 30... Nh5 {[%clk
0:00:51.1]} 31. Nb7 {[%clk 0:01:24.1]} 31... Qg3 {[%clk 0:00:28.8]} 32. Nxa5
{[%clk 0:01:13.2]} 32... Nf4 {[%clk 0:00:28.8]} 33. Kf1 {[%clk 0:01:13.4]} 33...
Qh2 {[%clk 0:00:24.4]} 34. g3 {[%clk 0:01:00]} 34... Qxg3 {[%clk 0:00:19.2]} 35.
Rf2 {[%clk 0:00:51.5]} 35... Nxh3 {[%clk 0:00:14.7]} 36. Qd2 {[%clk 0:00:08]}
36... Qg1+ {[%clk 0:00:09.4]} 37. Ke2 {[%clk 0:00:08]} 37... Qxf2+ {[%clk
0:00:10.1]} 38. Kd3 {[%clk 0:00:08.5]} 38... Qxf3+ {[%clk 0:00:10.8]} 39. Kc2
{[%clk 0:00:09.2]} 39... Qe4+ {[%clk 0:00:11.1]} 40. Kb3 {[%clk 0:00:08]} 40...
Rb8+ {[%clk 0:00:09.6]} 41. Ka2 {[%clk 0:00:08.3]} 41... Nf2 {[%clk 0:00:09.4]}
42. Re1 {[%clk 0:00:06.6]} 42... Rxb2+ {[%clk 0:00:08.3]} 43. Qxb2 {[%clk
0:00:04.2]} 43... Qxe1 {[%clk 0:00:08.6]} 44. Nxc6 {[%clk 0:00:03.4]} 44... Kg7
{[%clk 0:00:08.5]} 45. a4 {[%clk 0:00:03]} 45... Nd3 {[%clk 0:00:08.6]} 46. Qb7
{[%clk 0:00:02.4]} 46... Qd2+ {[%clk 0:00:08.5]} 47. Ka3 {[%clk 0:00:02.9]}
47... Qc3+ {[%clk 0:00:08.4]} 48. Ka2 {[%clk 0:00:03.3]} 48... Qc2+ {[%clk
0:00:07.6]} 49. Ka3 {[%clk 0:00:03.6]} 49... Kh6 {[%clk 0:00:04.3]} 50. Nxe7
{[%clk 0:00:03.1]} 50... Bg3 {[%clk 0:00:03.9]} 51. Ng8+ {[%clk 0:00:02.9]}
51... Kg5 {[%clk 0:00:03.9]} 52. Qe7+ {[%clk 0:00:02.2]} 52... Kf4 {[%clk
0:00:03.9]} 53. Qd6+ {[%clk 0:00:02.2]} 53... Kf3 {[%clk 0:00:04.3]} 54. Qb6
{[%clk 0:00:01.3]} 54... Bd6+ {[%clk 0:00:03.1]} 55. Qxd6 {[%clk 0:00:01.6]}
55... Qb2# {[%clk 0:00:03.7]} 0-1

[Event "Late-Titled-Tuesday-Blitz-April-02-2024"]
[Site "Chess.com"]
[Date "2024.04.02"]
[Round "11"]
[White "Navyblue1"]
[Black "rcmz"]
[Result "1-0"]
[WhiteElo "2284"]
[BlackElo "2205"]
[TimeControl "180+1"]
[EndTime "16:04:50 PDT"]
[Termination "Navyblue1 won by resignation"]

1. d4 {[%clk 0:03:00.9]} 1... d6 {[%clk 0:02:53]} 2. c4 {[%clk 0:03:01.1]} 2...
Nd7 {[%clk 0:02:53]} 3. Nc3 {[%clk 0:03:01.3]} 3... c6 {[%clk 0:02:53.2]} 4. e4
{[%clk 0:03:00.7]} 4... h6 {[%clk 0:02:53.4]} 5. Nf3 {[%clk 0:02:41.8]} 5... g5
{[%clk 0:02:52.9]} 6. h3 {[%clk 0:02:40.5]} 6... Bg7 {[%clk 0:02:51.1]} 7. Be2
{[%clk 0:02:40.7]} 7... Qc7 {[%clk 0:02:44.6]} 8. Be3 {[%clk 0:02:39.8]} 8...
Nf8 {[%clk 0:02:38.5]} 9. Rc1 {[%clk 0:02:36.6]} 9... Ng6 {[%clk 0:02:35.3]} 10.
O-O {[%clk 0:02:27.5]} 10... g4 {[%clk 0:02:34.4]} 11. hxg4 {[%clk 0:02:26.8]}
11... Bxg4 {[%clk 0:02:34.4]} 12. d5 {[%clk 0:02:25.9]} 12... Nf6 {[%clk
0:02:31.3]} 13. Qa4 {[%clk 0:02:17.7]} 13... Kf8 {[%clk 0:02:25.9]} 14. Rfd1
{[%clk 0:02:11.6]} 14... Bd7 {[%clk 0:02:16.3]} 15. Qc2 {[%clk 0:02:09.7]} 15...
Ng4 {[%clk 0:02:14.7]} 16. Bd4 {[%clk 0:02:07.9]} 16... N4e5 {[%clk 0:02:11.4]}
17. Nxe5 {[%clk 0:02:06.9]} 17... Nxe5 {[%clk 0:02:06.3]} 18. f4 {[%clk
0:01:55.7]} 18... Ng4 {[%clk 0:02:05.1]} 19. Bxg7+ {[%clk 0:01:54.2]} 19... Kxg7
{[%clk 0:02:04.4]} 20. Bxg4 {[%clk 0:01:50.1]} 20... Bxg4 {[%clk 0:02:03.4]} 21.
Rf1 {[%clk 0:01:49.7]} 21... Qb6+ {[%clk 0:01:50]} 22. Qf2 {[%clk 0:01:50.1]}
22... Qxf2+ {[%clk 0:01:46]} 23. Kxf2 {[%clk 0:01:51]} 23... f5 {[%clk
0:01:44.4]} 24. Rfe1 {[%clk 0:01:48.4]} 24... Kf7 {[%clk 0:01:34.4]} 25. e5
{[%clk 0:01:48.1]} 25... h5 {[%clk 0:01:30]} 26. exd6 {[%clk 0:01:44.5]} 26...
exd6 {[%clk 0:01:29.4]} 27. Re6 {[%clk 0:01:44.7]} 27... Rad8 {[%clk 0:01:27.7]}
28. Rce1 {[%clk 0:01:43.3]} 28... Rhe8 {[%clk 0:01:26.1]} 29. b3 {[%clk
0:01:31.5]} 29... Rxe6 {[%clk 0:01:24.9]} 30. Rxe6 {[%clk 0:01:26.9]} 30... Rd7
{[%clk 0:01:20.1]} 31. Rh6 {[%clk 0:01:20.2]} 31... Kg7 {[%clk 0:01:18.3]} 32.
Re6 {[%clk 0:01:19.6]} 32... Kf7 {[%clk 0:01:18.1]} 33. Re3 {[%clk 0:01:14.5]}
33... Re7 {[%clk 0:01:16.5]} 34. g3 {[%clk 0:01:14.3]} 34... Rxe3 {[%clk
0:01:13.8]} 35. Kxe3 {[%clk 0:01:15]} 35... Ke7 {[%clk 0:01:13.1]} 36. a3 {[%clk
0:01:14.4]} 36... Kd7 {[%clk 0:01:12.6]} 37. b4 {[%clk 0:01:13.3]} 37... Kc7
{[%clk 0:01:09]} 38. Kd4 {[%clk 0:01:12.7]} 38... Kd7 {[%clk 0:01:08.2]} 39. Nb1
{[%clk 0:01:07.7]} 39... cxd5 {[%clk 0:01:01.2]} 40. Kxd5 {[%clk 0:01:06.3]}
40... Bf3+ {[%clk 0:01:01]} 41. Kd4 {[%clk 0:01:06]} 41... Ke6 {[%clk 0:01:00]}
42. Nc3 {[%clk 0:01:04.9]} 42... a6 {[%clk 0:00:59.4]} 43. a4 {[%clk 0:01:04.1]}
43... b6 {[%clk 0:00:47.9]} 44. Ke3 {[%clk 0:00:53.9]} 44... Bc6 {[%clk
0:00:45.7]} 45. b5 {[%clk 0:00:48.2]} 45... axb5 {[%clk 0:00:45.2]} 46. axb5
{[%clk 0:00:46.7]} 46... Bb7 {[%clk 0:00:43.6]} 47. Kd4 {[%clk 0:00:41.8]} 47...
Bf3 {[%clk 0:00:42.3]} 48. Na4 {[%clk 0:00:40.8]} 48... d5 {[%clk 0:00:42.3]}
49. Nxb6 {[%clk 0:00:38.8]} 49... dxc4 {[%clk 0:00:41.4]} 50. Nxc4 {[%clk
0:00:39.3]} 50... Bb7 {[%clk 0:00:39.3]} 51. Kc5 {[%clk 0:00:37.3]} 51... Bd5
{[%clk 0:00:37.6]} 52. b6 {[%clk 0:00:34.9]} 52... Ba8 {[%clk 0:00:31.9]} 53.
Na5 {[%clk 0:00:33.9]} 53... Bd5 {[%clk 0:00:18.6]} 54. b7 {[%clk 0:00:33.4]}
54... Bxb7 {[%clk 0:00:17.2]} 55. Nxb7 {[%clk 0:00:32.5]} 55... Kf6 {[%clk
0:00:15.7]} 56. Kd4 {[%clk 0:00:31.3]} 56... Ke6 {[%clk 0:00:15.3]} 57. Nc5+
{[%clk 0:00:30.4]} 57... Kd6 {[%clk 0:00:14.7]} 58. Nd3 {[%clk 0:00:30.3]} 58...
Ke6 {[%clk 0:00:14.8]} 59. Ne5 {[%clk 0:00:29.8]} 59... Kd6 {[%clk 0:00:14.6]}
60. Ng6 {[%clk 0:00:27.1]} 60... Ke6 {[%clk 0:00:14.3]} 61. Nh4 {[%clk
0:00:27.6]} 61... Kf6 {[%clk 0:00:12.9]} 62. Kd5 {[%clk 0:00:28.1]} 62... Kg7
{[%clk 0:00:11.4]} 63. Nxf5+ {[%clk 0:00:28.3]} 63... Kg6 {[%clk 0:00:11.7]} 64.
Nh4+ {[%clk 0:00:28.7]} 64... Kh6 {[%clk 0:00:11.9]} 65. Ke5 {[%clk 0:00:28.9]}
65... Kg7 {[%clk 0:00:12]} 66. Kf5 {[%clk 0:00:29]} 66... Kh6 {[%clk 0:00:12.2]}
67. Kf6 {[%clk 0:00:28.8]} 67... Kh7 {[%clk 0:00:12.2]} 68. Kg5 {[%clk
0:00:29.5]} 68... Kg7 {[%clk 0:00:12.4]} 69. Kxh5 {[%clk 0:00:30.4]} 1-0

[Event "Late-Titled-Tuesday-Blitz-April-02-2024"]
[Site "Chess.com"]
[Date "2024.04.02"]
[Round "11"]
[White "Njal28"]
[Black "Sargsyan_Shant"]
[Result "1-0"]
[WhiteElo "3068"]
[BlackElo "2971"]
[TimeControl "180+1"]
[EndTime "16:04:51 PDT"]
[Termination "Njal28 won by checkmate"]

1. e4 {[%clk 0:03:00.9]} 1... e5 {[%clk 0:02:59.8]} 2. Nf3 {[%clk 0:03:00.8]}
2... Nc6 {[%clk 0:03:00.5]} 3. Nc3 {[%clk 0:03:00.9]} 3... Nf6 {[%clk
0:02:59.2]} 4. Nd5 {[%clk 0:03:01.1]} 4... d6 {[%clk 0:02:51.8]} 5. d4 {[%clk
0:02:53.1]} 5... Be7 {[%clk 0:02:35.1]} 6. Bb5 {[%clk 0:02:50.7]} 6... O-O
{[%clk 0:02:31.2]} 7. Nxe7+ {[%clk 0:02:31]} 7... Qxe7 {[%clk 0:02:32.1]} 8. d5
{[%clk 0:02:27.1]} 8... Nb8 {[%clk 0:02:30.5]} 9. Bd3 {[%clk 0:02:23.3]} 9...
Nbd7 {[%clk 0:02:30.6]} 10. O-O {[%clk 0:02:22.3]} 10... Nc5 {[%clk 0:02:31.2]}
11. Bg5 {[%clk 0:02:16.8]} 11... h6 {[%clk 0:02:31]} 12. Bh4 {[%clk 0:02:14.6]}
12... a5 {[%clk 0:02:26.3]} 13. Nd2 {[%clk 0:02:04.5]} 13... g5 {[%clk
0:02:22.9]} 14. Bg3 {[%clk 0:02:04.9]} 14... Kg7 {[%clk 0:02:22.2]} 15. Re1
{[%clk 0:02:04.6]} 15... Bg4 {[%clk 0:02:14.2]} 16. f3 {[%clk 0:02:04.3]} 16...
Bd7 {[%clk 0:02:12.5]} 17. Bf2 {[%clk 0:02:04.8]} 17... b6 {[%clk 0:02:08.7]}
18. Bf1 {[%clk 0:02:04.6]} 18... Nh5 {[%clk 0:02:05.4]} 19. Nc4 {[%clk
0:02:04.6]} 19... Nf4 {[%clk 0:01:54.7]} 20. Ne3 {[%clk 0:02:03.5]} 20... f5
{[%clk 0:01:23.9]} 21. exf5 {[%clk 0:02:02.5]} 21... Bxf5 {[%clk 0:01:24.8]} 22.
Nxf5+ {[%clk 0:01:59.1]} 22... Rxf5 {[%clk 0:01:25.7]} 23. c3 {[%clk 0:01:54.2]}
23... a4 {[%clk 0:01:17.3]} 24. Qc2 {[%clk 0:01:51.6]} 24... Rf6 {[%clk
0:01:12.6]} 25. b4 {[%clk 0:01:50.8]} 25... axb3 {[%clk 0:00:46.3]} 26. axb3
{[%clk 0:01:51.7]} 26... Rxa1 {[%clk 0:00:47.2]} 27. Rxa1 {[%clk 0:01:52.6]}
27... Nxd5 {[%clk 0:00:46.9]} 28. b4 {[%clk 0:01:47.6]} 28... Ne6 {[%clk
0:00:46.8]} 29. Ra7 {[%clk 0:01:45.3]} 29... Rf7 {[%clk 0:00:39.1]} 30. Bc4
{[%clk 0:01:42.6]} 30... Ndf4 {[%clk 0:00:39.5]} 31. Bxb6 {[%clk 0:01:37.9]}
31... d5 {[%clk 0:00:40.1]} 32. Bf1 {[%clk 0:01:35.7]} 32... e4 {[%clk
0:00:38.3]} 33. Bf2 {[%clk 0:01:21.1]} 33... Qf6 {[%clk 0:00:37.2]} 34. fxe4
{[%clk 0:01:07.2]} 34... dxe4 {[%clk 0:00:38.1]} 35. Ra1 {[%clk 0:01:06.2]}
35... Nd5 {[%clk 0:00:32]} 36. Qd2 {[%clk 0:00:48.9]} 36... c6 {[%clk
0:00:18.9]} 37. b5 {[%clk 0:00:41.5]} 37... Nxc3 {[%clk 0:00:18.7]} 38. bxc6
{[%clk 0:00:38.5]} 38... Ne2+ {[%clk 0:00:19.1]} 39. Qxe2 {[%clk 0:00:36.7]}
39... Qxa1 {[%clk 0:00:19.6]} 40. Qxe4 {[%clk 0:00:36.9]} 40... Qf6 {[%clk
0:00:16.8]} 41. Qe3 {[%clk 0:00:32.5]} 41... Nf4 {[%clk 0:00:14.5]} 42. g3
{[%clk 0:00:23.8]} 42... Ng6 {[%clk 0:00:10.6]} 43. Qc5 {[%clk 0:00:18.8]} 43...
Ne5 {[%clk 0:00:07.3]} 44. c7 {[%clk 0:00:18.6]} 44... Nf3+ {[%clk 0:00:07.9]}
45. Kh1 {[%clk 0:00:18.3]} 45... Ne5 {[%clk 0:00:03.6]} 46. c8=Q {[%clk
0:00:17.8]} 46... Qf3+ {[%clk 0:00:02.9]} 47. Kg1 {[%clk 0:00:16.3]} 47... Qe4
{[%clk 0:00:03.5]} 48. Qd4 {[%clk 0:00:11.4]} 48... Qf5 {[%clk 0:00:01.9]} 49.
Qcc3 {[%clk 0:00:11.4]} 49... Re7 {[%clk 0:00:02]} 50. Bg2 {[%clk 0:00:11.2]}
50... Kg6 {[%clk 0:00:02.7]} 51. Qe4 {[%clk 0:00:11]} 51... Kh5 {[%clk 0:00:03]}
52. Qxf5 {[%clk 0:00:11]} 52... Nf3+ {[%clk 0:00:03.1]} 53. Qcxf3# {[%clk
0:00:11]} 1-0